fUST/lending_fUST_20250526
["ID","MTS","AMOUNT","RATE_DAILY","PERIOD"]
[362332128,1748199065504,-720.0,0.00021731,2]
[362332129,1748199065513,-316.0,0.00021731,2]
[362332130,1748199065522,-720.0,0.00021731,2]
[362332131,1748199065532,-316.0,0.00021731,2]
[362332132,1748199065541,-720.0,0.00021731,2]
[362332133,1748199065549,-316.0,0.00021731,2]
[362332134,1748199065558,-316.0,0.00021731,2]
[362332135,1748199065567,-316.0,0.00021731,2]
[362332136,1748199065576,-720.0,0.00021731,2]
[362332137,1748199065585,-316.0,0.00021731,2]
[362332138,1748199065594,-720.0,0.00021731,2]
[362332139,1748199065602,-161.64431884,0.00021731,2]
[362332140,1748199065611,-720.0,0.00021731,2]
[362332141,1748199065621,-720.0,0.00021731,2]
[362332142,1748199065630,-720.0,0.00021731,2]
[362332143,1748199065639,-720.0,0.00021731,2]
[362332144,1748199065649,-407.79895526,0.00021731,2]
[362332145,1748199065657,-3000.0,0.0002174,2]
[362332146,1748199065666,-3000.0,0.0002175,2]
[362332147,1748199065675,-2232.0,0.00021752,2]
[362332148,1748199065684,-707.0,0.00021752,2]
[362332149,1748199065694,-3000.0,0.0002176,2]
[362332150,1748199065704,-1039.46765035,0.00021762,5]
[362332151,1748199066220,-430.0,0.00019178,2]
[362332152,1748199066232,-430.0,0.00019452,2]
[362332153,1748199066242,-500.0,0.00019505,2]
[362332154,1748199066253,-430.0,0.00019726,2]
[362332155,1748199066264,-445.64211707,0.0002,2]
[362332156,1748199066274,-404.0,0.00021752,2]
[362332157,1748199066286,-14.70798378,0.00021762,5]
[362332158,1748199066297,-176.58861794,0.00021768,2]
[362332159,1748199066307,-151.0,0.00021768,2]
[362332160,1748199066317,-151.0,0.00021768,2]
[362332161,1748199066326,-151.0,0.00021768,2]
[362332162,1748199066336,-151.0,0.00021768,2]
[362332163,1748199066345,-151.0,0.00021768,2]
[362332164,1748199066355,-151.0,0.00021768,2]
[362332165,1748199066364,-151.0,0.00021768,2]
[362332166,1748199066374,-151.0,0.00021768,2]
[362332167,1748199066383,-151.0,0.00021768,2]
[362332168,1748199066392,-151.0,0.00021768,2]
[362332169,1748199066401,-151.0,0.00021768,2]
[362332170,1748199066411,-151.0,0.00021768,2]
[362332171,1748199066420,-151.0,0.00021768,2]
[362332172,1748199066430,-151.0,0.00021768,2]
[362332173,1748199066440,-151.0,0.00021768,2]
[362332174,1748199066450,-151.0,0.00021768,2]
[362332175,1748199066459,-151.0,0.00021768,2]
[362332176,1748199066469,-151.0,0.00021768,2]
[362332177,1748199066478,-151.0,0.00021768,2]
[362332178,1748199066487,-151.0,0.00021768,2]
[362332179,1748199066498,-151.0,0.00021768,2]
[362332180,1748199066507,-151.0,0.00021768,2]
[362332181,1748199066517,-151.0,0.00021768,2]
[362332182,1748199066526,-151.0,0.00021768,2]
[362332183,1748199066536,-151.0,0.00021768,2]
[362332184,1748199066545,-151.0,0.00021768,2]
[362332185,1748199066555,-151.0,0.00021768,2]
[362332186,1748199066564,-221.91142039,0.00021768,2]
[362332187,1748199066574,-3000.0,0.0002177,2]
[362332188,1748199066583,-2966.51182164,0.0002178,2]
[362332189,1748199066595,-33.48817836,0.0002178,2]
[362332190,1748199066605,-3225.76282742,0.00021789,2]
[362332191,1748199066616,-5120.06181436,0.00021789,2]
[362332192,1748199066627,-4448.32758104,0.00021789,2]
[362332193,1748199066636,-713.80649105,0.0002179,2]
[362332194,1748199066650,-1048.79303016,0.0002179,2]
[362332196,1748199241239,562.536814,0.00013699,2]
[362332200,1748199569328,160.48,0.00013528,2]
[362332203,1748199642251,209.19,0.00013525,2]
[362332205,1748199714315,237.94,0.00013539,2]
[362332206,1748199785842,151.01,0.0001291,2]
[362332207,1748199786237,302.02,0.00013525,2]
[362332208,1748199856669,151.86,0.00012911,2]
[362332209,1748199857075,303.73,0.00013525,2]
[362332210,1748199928328,152.67,0.00013526,2]
[362332212,1748200073700,158.99,0.00013523,2]
[362332213,1748200146147,165.19,0.00013538,2]
[362332217,1748200218445,162.18,0.00013525,2]
[362332239,1748200232275,-324.36,0.00014755,2]
[362332242,1748200232287,-486.55,0.00015985,2]
[362332244,1748200232297,-648.73,0.00017214,2]
[362332246,1748200232306,-181.8926871,0.00017451,2]
[362332248,1748200232315,-200.0,0.00017842,2]
[362332250,1748200232325,-600.0,0.00018081,2]
[362332252,1748200232335,-810.91,0.00018444,2]
[362332254,1748200232345,-207.4,0.00018704,2]
[362332256,1748200232355,-2709.58083242,0.000188,2]
[362332258,1748200232365,-300.0,0.00018813,2]
[362332260,1748200232375,-404.0,0.00018816,2]
[362332263,1748200232387,-300.0,0.00018864,2]
[362332264,1748200232397,-1200.0,0.00018864,2]
[362332267,1748200232407,-50000.0,0.00018865,2]
[362332269,1748200232417,-496.44178022,0.000189,2]
[362332271,1748200232427,-600.0,0.00019177,2]
[362332273,1748200232437,-500.0,0.00019177,2]
[362332275,1748200232447,-500.0,0.00019177,2]
[362332277,1748200232456,-500.0,0.00019177,2]
[362332279,1748200232467,-232.31869235,0.00019177,2]
[362332281,1748200232476,-500.0,0.00019177,2]
[362332282,1748200232486,-475.41293851,0.00019177,2]
[362332283,1748200232495,-500.0,0.00019177,2]
[362332284,1748200232504,-500.0,0.00019177,2]
[362332285,1748200232514,-500.0,0.00019177,2]
[362332286,1748200232523,-500.0,0.00019177,2]
[362332287,1748200232532,-500.0,0.00019177,2]
[362332288,1748200232541,-500.0,0.00019177,2]
[362332289,1748200232551,-273.58749392,0.00019178,2]
[362332290,1748200232560,-430.0,0.00019178,2]
[362332291,1748200232569,-430.0,0.00019178,2]
[362332292,1748200232579,-430.0,0.00019178,2]
[362332293,1748200232589,-430.0,0.00019178,2]
[362332294,1748200232598,-430.0,0.00019178,2]
[362332295,1748200232607,-430.0,0.00019178,2]
[362332296,1748200232617,-430.0,0.00019178,2]
[362332297,1748200232626,-343.42695898,0.00019178,2]
[362332298,1748200232636,-430.0,0.00019178,2]
[362332299,1748200232645,-430.0,0.00019178,2]
[362332300,1748200232655,-430.0,0.00019178,2]
[362332301,1748200232664,-430.0,0.00019178,2]
[362332302,1748200232674,-430.0,0.00019178,2]
[362332303,1748200232684,-430.0,0.00019178,2]
[362332304,1748200232693,-430.0,0.00019178,2]
[362332305,1748200232703,-1382.75,0.00019178,2]
[362332306,1748200232712,-430.0,0.00019178,2]
[362332307,1748200232722,-430.0,0.00019178,2]
[362332308,1748200232732,-430.0,0.00019178,2]
[362332309,1748200232742,-430.0,0.00019178,2]
[362332310,1748200232751,-430.0,0.00019178,2]
[362332311,1748200232761,-430.0,0.00019178,2]
[362332312,1748200232770,-418.67133647,0.00019178,2]
[362332313,1748200232780,-430.0,0.00019178,2]
[362332314,1748200232790,-430.0,0.00019178,2]
[362332315,1748200232800,-430.0,0.00019178,2]
[362332316,1748200232809,-1681.54,0.00019178,2]
[362332317,1748200232819,-430.0,0.00019178,2]
[362332318,1748200232829,-430.0,0.00019178,2]
[362332319,1748200232838,-500.0,0.00019178,2]
[362332320,1748200232848,-2008.68,0.00019178,2]
[362332321,1748200232857,-430.0,0.00019178,2]
[362332322,1748200232867,-430.0,0.00019178,2]
[362332323,1748200232877,-1011.72,0.00019178,2]
[362332324,1748200232886,-430.0,0.00019178,2]
[362332325,1748200232895,-430.0,0.00019178,2]
[362332326,1748200232905,-459.15,0.00019178,2]
[362332327,1748200232916,-430.0,0.00019178,2]
[362332328,1748200232925,-458.77,0.00019178,2]
[362332329,1748200232935,-602.94,0.00019178,2]
[362332331,1748200232945,-430.0,0.00019178,2]
[362332332,1748200232955,-1900.87,0.00019178,2]
[362332333,1748200232965,-430.0,0.00019178,2]
[362332334,1748200232974,-430.0,0.00019178,2]
[362332335,1748200232984,-430.0,0.00019178,2]
[362332336,1748200232993,-534.91,0.00019178,2]
[362332337,1748200233002,-818.58,0.00019178,2]
[362332338,1748200233012,-430.0,0.00019178,2]
[362332339,1748200233022,-430.0,0.00019178,2]
[362332340,1748200233032,-987.56,0.00019178,2]
[362332341,1748200233042,-62.07875758,0.00019178,2]
[362332342,1748200233117,-367.92124242,0.00019178,2]
[362332343,1748200233128,-154.4213844,0.00019178,2]
[362332344,1748200233138,-430.0,0.00019178,2]
[362332345,1748200233148,-617.67,0.00019178,2]
[362332346,1748200233158,-584.4,0.00019178,2]
[362332347,1748200233168,-1243.78,0.00019178,2]
[362332348,1748200233178,-430.0,0.00019178,2]
[362332349,1748200233187,-430.0,0.00019178,2]
[362332350,1748200233197,-430.0,0.00019178,2]
[362332351,1748200233207,-551.81,0.00019178,2]
[362332352,1748200233217,-430.0,0.00019178,2]
[362332353,1748200233227,-479.8,0.00019178,2]
[362332354,1748200233237,-430.0,0.00019178,2]
[362332355,1748200233247,-458.77,0.00019178,2]
[362332356,1748200233258,-474.02,0.00019178,2]
[362332357,1748200233268,-430.0,0.00019178,2]
[362332358,1748200233278,-439.62,0.00019178,2]
[362332359,1748200233289,-430.0,0.00019178,2]
[362332360,1748200233299,-744.35,0.00019178,2]
[362332361,1748200233309,-1105.38,0.00019178,2]
[362332362,1748200233319,-430.0,0.00019178,2]
[362332363,1748200233330,-430.0,0.00019178,2]
[362332364,1748200233339,-430.0,0.00019178,2]
[362332365,1748200233349,-3010.48,0.00019178,2]
[362332366,1748200233359,-1636.1,0.00019178,2]
[362332367,1748200233370,-1264.58,0.00019178,2]
[362332368,1748200233380,-480.98,0.00019178,2]
[362332369,1748200233392,-430.0,0.00019178,2]
[362332370,1748200233402,-430.0,0.00019178,2]
[362332371,1748200233412,-430.0,0.00019178,2]
[362332372,1748200233423,-430.0,0.00019178,2]
[362332373,1748200233435,-430.0,0.00019178,2]
[362332374,1748200233444,-3594.45,0.00019178,2]
[362332375,1748200233454,-430.0,0.00019178,2]
[362332376,1748200233466,-641.67,0.00019178,2]
[362332377,1748200233476,-430.0,0.00019178,2]
[362332378,1748200233490,-430.0,0.00019178,2]
[362332379,1748200233500,-430.0,0.00019178,2]
[362332380,1748200233510,-430.0,0.00019178,2]
[362332381,1748200233520,-430.0,0.00019178,2]
[362332382,1748200233529,-430.0,0.00019178,2]
[362332383,1748200233540,-1649.04,0.00019178,2]
[362332384,1748200233550,-430.0,0.00019178,2]
[362332385,1748200233561,-430.0,0.00019178,2]
[362332386,1748200233572,-634.51,0.00019178,2]
[362332387,1748200233582,-430.0,0.00019178,2]
[362332388,1748200233593,-430.0,0.00019178,2]
[362332389,1748200233603,-430.0,0.00019178,2]
[362332390,1748200233613,-499.79,0.00019178,2]
[362332391,1748200233624,-540.42,0.00019178,2]
[362332392,1748200233634,-978.95,0.00019178,2]
[362332393,1748200233644,-1016.45,0.00019178,2]
[362332394,1748200233655,-178.948429,0.00019178,2]
[362332395,1748200233665,-423.00916439,0.00019236,2]
[362332396,1748200233675,-160.0,0.00019236,2]
[362332397,1748200233685,-212.55626673,0.00019236,2]
[362332398,1748200233695,-160.0,0.00019236,2]
[362332399,1748200233706,-229.13142565,0.00019236,2]
[362332400,1748200233716,-160.0,0.00019236,2]
[362332401,1748200233726,-894.64583333,0.00019236,2]
[362332402,1748200233737,-12652.24558203,0.00019236,2]
[362332403,1748200233747,-430.0,0.00019452,2]
[362332404,1748200233757,-430.0,0.00019452,2]
[362332405,1748200233767,-430.0,0.00019452,2]
[362332406,1748200233777,-430.0,0.00019452,2]
[362332407,1748200233787,-430.0,0.00019452,2]
[362332408,1748200233797,-430.0,0.00019452,2]
[362332409,1748200233807,-430.0,0.00019452,2]
[362332410,1748200233817,-430.0,0.00019452,2]
[362332411,1748200233826,-430.0,0.00019452,2]
[362332412,1748200233837,-430.0,0.00019452,2]
[362332413,1748200233847,-430.0,0.00019452,2]
[362332414,1748200233856,-383.22753536,0.00019452,2]
[362332415,1748200233866,-430.0,0.00019452,2]
[362332416,1748200233878,-430.0,0.00019452,2]
[362332417,1748200233888,-1382.75,0.00019452,2]
[362332418,1748200233898,-231.21355408,0.00019452,2]
[362332419,1748200233908,-430.0,0.00019452,2]
[362332420,1748200233918,-430.0,0.00019452,2]
[362332421,1748200233928,-430.0,0.00019452,2]
[362332422,1748200233937,-430.0,0.00019452,2]
[362332423,1748200233947,-430.0,0.00019452,2]
[362332424,1748200233957,-430.0,0.00019452,2]
[362332425,1748200233968,-430.0,0.00019452,2]
[362332426,1748200233979,-430.0,0.00019452,2]
[362332427,1748200233989,-430.0,0.00019452,2]
[362332428,1748200233999,-430.0,0.00019452,2]
[362332429,1748200234010,-500.0,0.00019452,2]
[362332430,1748200234020,-2008.68,0.00019452,2]
[362332431,1748200234030,-430.0,0.00019452,2]
[362332432,1748200234040,-430.0,0.00019452,2]
[362332433,1748200234050,-1011.72,0.00019452,2]
[362332434,1748200234060,-430.0,0.00019452,2]
[362332435,1748200234070,-430.0,0.00019452,2]
[362332436,1748200234080,-459.15,0.00019452,2]
[362332437,1748200234091,-430.0,0.00019452,2]
[362332438,1748200234101,-458.77,0.00019452,2]
[362332439,1748200234112,-602.94,0.00019452,2]
[362332440,1748200234122,-430.0,0.00019452,2]
[362332441,1748200234132,-1900.87,0.00019452,2]
[362332442,1748200234142,-430.0,0.00019452,2]
[362332443,1748200234151,-430.0,0.00019452,2]
[362332444,1748200234162,-430.0,0.00019452,2]
[362332445,1748200234172,-534.91,0.00019452,2]
[362332446,1748200234182,-818.58,0.00019452,2]
[362332447,1748200234192,-430.0,0.00019452,2]
[362332448,1748200234202,-430.0,0.00019452,2]
[362332449,1748200234212,-987.56,0.00019452,2]
[362332450,1748200234222,-430.0,0.00019452,2]
[362332451,1748200234232,-430.0,0.00019452,2]
[362332452,1748200234242,-617.67,0.00019452,2]
[362332453,1748200234252,-584.4,0.00019452,2]
[362332454,1748200234263,-1243.78,0.00019452,2]
[362332455,1748200234272,-430.0,0.00019452,2]
[362332456,1748200234283,-305.0,0.00019452,2]
[362332457,1748200234292,-430.0,0.00019452,2]
[362332458,1748200234303,-551.81,0.00019452,2]
[362332459,1748200234312,-430.0,0.00019452,2]
[362332460,1748200234322,-479.8,0.00019452,2]
[362332461,1748200234333,-430.0,0.00019452,2]
[362332462,1748200234342,-458.77,0.00019452,2]
[362332463,1748200234352,-474.02,0.00019452,2]
[362332464,1748200234363,-430.0,0.00019452,2]
[362332465,1748200234372,-439.62,0.00019452,2]
[362332466,1748200234382,-430.0,0.00019452,2]
[362332467,1748200234395,-744.35,0.00019452,2]
[362332468,1748200234405,-1105.38,0.00019452,2]
[362332469,1748200234415,-430.0,0.00019452,2]
[362332470,1748200234425,-430.0,0.00019452,2]
[362332471,1748200234435,-430.0,0.00019452,2]
[362332472,1748200234444,-3010.48,0.00019452,2]
[362332473,1748200234455,-1636.1,0.00019452,2]
[362332474,1748200234466,-1264.58,0.00019452,2]
[362332475,1748200234476,-480.98,0.00019452,2]
[362332476,1748200234487,-430.0,0.00019452,2]
[362332477,1748200234498,-430.0,0.00019452,2]
[362332478,1748200234507,-430.0,0.00019452,2]
[362332479,1748200234517,-430.0,0.00019452,2]
[362332480,1748200234527,-430.0,0.00019452,2]
[362332481,1748200234536,-3594.45,0.00019452,2]
[362332482,1748200234546,-430.0,0.00019452,2]
[362332483,1748200234556,-641.67,0.00019452,2]
[362332484,1748200234565,-430.0,0.00019452,2]
[362332485,1748200234576,-430.0,0.00019452,2]
[362332486,1748200234585,-430.0,0.00019452,2]
[362332487,1748200234595,-367.2818539,0.00019452,2]
[362332488,1748200234605,-430.0,0.00019452,2]
[362332489,1748200234614,-430.0,0.00019452,2]
[362332490,1748200234624,-1649.04,0.00019452,2]
[362332491,1748200234633,-430.0,0.00019452,2]
[362332492,1748200234644,-430.0,0.00019452,2]
[362332493,1748200234653,-634.51,0.00019452,2]
[362332494,1748200234663,-430.0,0.00019452,2]
[362332495,1748200234672,-430.0,0.00019452,2]
[362332496,1748200234682,-430.0,0.00019452,2]
[362332497,1748200234691,-499.79,0.00019452,2]
[362332498,1748200234701,-540.42,0.00019452,2]
[362332499,1748200234710,-978.95,0.00019452,2]
[362332500,1748200234719,-1016.45,0.00019452,2]
[362332501,1748200234729,-2200.0,0.00019643,2]
[362332502,1748200234739,-797.896,0.00019643,2]
[362332503,1748200234748,-2709.58083236,0.00019671,2]
[362332504,1748200234757,-973.09,0.00019673,2]
[362332505,1748200234768,-500.0,0.00019725,2]
[362332506,1748200234777,-365.34548109,0.00019725,2]
[362332507,1748200234787,-500.0,0.00019725,2]
[362332508,1748200234796,-323.90605051,0.00019725,2]
[362332509,1748200234806,-500.0,0.00019725,2]
[362332510,1748200234817,-500.0,0.00019725,2]
[362332511,1748200234826,-500.0,0.00019725,2]
[362332512,1748200234835,-500.0,0.00019725,2]
[362332513,1748200234844,-480.14407882,0.00019725,2]
[362332514,1748200234853,-500.0,0.00019725,2]
[362332515,1748200234863,-500.0,0.00019725,2]
[362332516,1748200234873,-585.14806333,0.00019725,2]
[362332517,1748200234883,-500.0,0.00019725,2]
[362332518,1748200234892,-500.0,0.00019725,2]
[362332519,1748200234901,-589.11411787,0.00019725,2]
[362332520,1748200234911,-500.0,0.00019725,2]
[362332521,1748200234921,-430.0,0.00019726,2]
[362332522,1748200234931,-430.0,0.00019726,2]
[362332523,1748200234940,-430.0,0.00019726,2]
[362332524,1748200234949,-430.0,0.00019726,2]
[362332525,1748200234959,-430.0,0.00019726,2]
[362332526,1748200234969,-430.0,0.00019726,2]
[362332527,1748200234979,-430.0,0.00019726,2]
[362332528,1748200234988,-430.0,0.00019726,2]
[362332529,1748200234998,-430.0,0.00019726,2]
[362332530,1748200235007,-430.0,0.00019726,2]
[362332531,1748200235173,-430.0,0.00019726,2]
[362332532,1748200235183,-430.0,0.00019726,2]
[362332533,1748200235193,-1382.75,0.00019726,2]
[362332534,1748200235202,-430.0,0.00019726,2]
[362332535,1748200235211,-430.0,0.00019726,2]
[362332536,1748200235220,-430.0,0.00019726,2]
[362332537,1748200235230,-430.0,0.00019726,2]
[362332538,1748200235239,-430.0,0.00019726,2]
[362332539,1748200235250,-430.0,0.00019726,2]
[362332540,1748200235260,-430.0,0.00019726,2]
[362332541,1748200235269,-480.37181364,0.00019726,2]
[362332542,1748200235278,-430.0,0.00019726,2]
[362332543,1748200235287,-430.0,0.00019726,2]
[362332544,1748200235297,-500.0,0.00019726,2]
[362332545,1748200235307,-2008.68,0.00019726,2]
[362332546,1748200235317,-430.0,0.00019726,2]
[362332547,1748200235326,-430.0,0.00019726,2]
[362332548,1748200235336,-1011.72,0.00019726,2]
[362332549,1748200235345,-430.0,0.00019726,2]
[362332550,1748200235355,-430.0,0.00019726,2]
[362332551,1748200235364,-430.0,0.00019726,2]
[362332552,1748200235374,-459.15,0.00019726,2]
[362332553,1748200235384,-458.77,0.00019726,2]
[362332554,1748200235398,-602.94,0.00019726,2]
[362332555,1748200235407,-430.0,0.00019726,2]
[362332556,1748200235416,-1900.87,0.00019726,2]
[362332557,1748200235426,-196.87163836,0.00019726,2]
[362332558,1748200235437,-430.0,0.00019726,2]
[362332559,1748200235447,-430.0,0.00019726,2]
[362332560,1748200235456,-534.91,0.00019726,2]
[362332561,1748200235467,-818.58,0.00019726,2]
[362332562,1748200235476,-430.0,0.00019726,2]
[362332563,1748200235486,-365.01127206,0.00019726,2]
[362332564,1748200235496,-987.56,0.00019726,2]
[362332565,1748200235506,-430.0,0.00019726,2]
[362332566,1748200235515,-430.0,0.00019726,2]
[362332567,1748200235525,-617.67,0.00019726,2]
[362332568,1748200235534,-584.4,0.00019726,2]
[362332569,1748200235544,-1243.78,0.00019726,2]
[362332570,1748200235553,-430.0,0.00019726,2]
[362332571,1748200235563,-430.0,0.00019726,2]
[362332572,1748200235572,-551.81,0.00019726,2]
[362332573,1748200235582,-430.0,0.00019726,2]
[362332574,1748200235591,-479.8,0.00019726,2]
[362332575,1748200235601,-430.0,0.00019726,2]
[362332576,1748200235610,-458.77,0.00019726,2]
[362332577,1748200235620,-474.02,0.00019726,2]
[362332578,1748200235629,-430.0,0.00019726,2]
[362332579,1748200235638,-439.62,0.00019726,2]
[362332580,1748200235648,-430.0,0.00019726,2]
[362332581,1748200235657,-744.35,0.00019726,2]
[362332582,1748200235667,-1105.38,0.00019726,2]
[362332583,1748200235676,-430.0,0.00019726,2]
[362332584,1748200235686,-430.0,0.00019726,2]
[362332585,1748200235695,-430.0,0.00019726,2]
[362332586,1748200235705,-3010.48,0.00019726,2]
[362332587,1748200235714,-1636.1,0.00019726,2]
[362332588,1748200235723,-1264.58,0.00019726,2]
[362332589,1748200235733,-480.98,0.00019726,2]
[362332590,1748200235742,-430.0,0.00019726,2]
[362332591,1748200235751,-430.0,0.00019726,2]
[362332592,1748200235761,-430.0,0.00019726,2]
[362332593,1748200235770,-430.0,0.00019726,2]
[362332594,1748200235780,-430.0,0.00019726,2]
[362332595,1748200235790,-3594.45,0.00019726,2]
[362332596,1748200235799,-430.0,0.00019726,2]
[362332597,1748200235810,-641.67,0.00019726,2]
[362332598,1748200235819,-430.0,0.00019726,2]
[362332599,1748200235828,-430.0,0.00019726,2]
[362332600,1748200235838,-430.0,0.00019726,2]
[362332601,1748200235848,-430.0,0.00019726,2]
[362332602,1748200235858,-430.0,0.00019726,2]
[362332603,1748200235868,-1649.04,0.00019726,2]
[362332604,1748200235878,-430.0,0.00019726,2]
[362332605,1748200235888,-430.0,0.00019726,2]
[362332606,1748200235897,-634.51,0.00019726,2]
[362332607,1748200235907,-430.0,0.00019726,2]
[362332608,1748200235916,-430.0,0.00019726,2]
[362332609,1748200235925,-430.0,0.00019726,2]
[362332610,1748200235935,-499.79,0.00019726,2]
[362332611,1748200235944,-540.42,0.00019726,2]
[362332612,1748200235953,-978.95,0.00019726,2]
[362332613,1748200235963,-1016.45,0.00019726,2]
[362332614,1748200235972,-500.0,0.00019809,2]
[362332615,1748200235982,-529.46087249,0.000199,2]
[362332616,1748200235992,-430.0,0.0002,2]
[362332617,1748200236001,-430.0,0.0002,2]
[362332618,1748200236011,-430.0,0.0002,2]
[362332619,1748200236020,-430.0,0.0002,2]
[362332620,1748200236029,-299.999999,0.0002,2]
[362332621,1748200236039,-430.0,0.0002,2]
[362332622,1748200236048,-430.0,0.0002,2]
[362332623,1748200236058,-430.0,0.0002,2]
[362332624,1748200236067,-430.0,0.0002,2]
[362332625,1748200236077,-430.0,0.0002,2]
[362332626,1748200236086,-193.13170124,0.0002,2]
[362332627,1748200236095,-430.0,0.0002,2]
[362332628,1748200236104,-2000.0,0.0002,2]
[362332629,1748200236114,-430.0,0.0002,2]
[362332630,1748200236124,-430.0,0.0002,2]
[362332631,1748200236133,-245.49287789,0.0002,2]
[362332632,1748200236143,-1382.75,0.0002,2]
[362332633,1748200236152,-430.0,0.0002,2]
[362332634,1748200236161,-430.0,0.0002,2]
[362332635,1748200236171,-430.0,0.0002,2]
[362332636,1748200236180,-430.0,0.0002,2]
[362332637,1748200236190,-158.0,0.0002,2]
[362332638,1748200236199,-385.57517533,0.0002,2]
[362332639,1748200236209,-430.0,0.0002,2]
[362332640,1748200236218,-430.0,0.0002,2]
[362332641,1748200236228,-430.0,0.0002,2]
[362332642,1748200236238,-430.0,0.0002,2]
[362332643,1748200236247,-500.0,0.0002,2]
[362332644,1748200236256,-2008.68,0.0002,2]
[362332645,1748200236265,-430.0,0.0002,2]
[362332646,1748200236275,-430.0,0.0002,2]
[362332647,1748200236284,-1011.72,0.0002,2]
[362332648,1748200236294,-430.0,0.0002,2]
[362332649,1748200236303,-430.0,0.0002,2]
[362332650,1748200236312,-430.0,0.0002,2]
[362332651,1748200236322,-459.15,0.0002,2]
[362332652,1748200236332,-458.77,0.0002,2]
[362332653,1748200236341,-602.94,0.0002,2]
[362332654,1748200236350,-430.0,0.0002,2]
[362332655,1748200236359,-1900.87,0.0002,2]
[362332656,1748200236369,-430.0,0.0002,2]
[362332657,1748200236378,-430.0,0.0002,2]
[362332658,1748200236389,-534.91,0.0002,2]
[362332659,1748200236402,-818.58,0.0002,2]
[362332660,1748200236412,-430.0,0.0002,2]
[362332661,1748200236422,-987.56,0.0002,2]
[362332662,1748200236432,-430.0,0.0002,2]
[362332663,1748200236442,-430.0,0.0002,2]
[362332664,1748200236453,-617.67,0.0002,2]
[362332665,1748200236464,-584.4,0.0002,2]
[362332666,1748200236473,-1243.78,0.0002,2]
[362332667,1748200236485,-430.0,0.0002,2]
[362332668,1748200236495,-340.6031687,0.0002,2]
[362332669,1748200236506,-551.81,0.0002,2]
[362332670,1748200236515,-430.0,0.0002,2]
[362332671,1748200236525,-479.8,0.0002,2]
[362332672,1748200236535,-430.0,0.0002,2]
[362332673,1748200236544,-458.77,0.0002,2]
[362332674,1748200236555,-474.02,0.0002,2]
[362332675,1748200236565,-430.0,0.0002,2]
[362332676,1748200236575,-439.62,0.0002,2]
[362332677,1748200236584,-430.0,0.0002,2]
[362332678,1748200236593,-744.35,0.0002,2]
[362332679,1748200236602,-1105.38,0.0002,2]
[362332680,1748200236611,-430.0,0.0002,2]
[362332681,1748200236620,-430.0,0.0002,2]
[362332682,1748200236628,-430.0,0.0002,2]